fUST/lending_fUST_20251216
["ID","MTS","AMOUNT","RATE_DAILY","PERIOD"]
[398584778,1765857060432,-728.64,0.00011506,2]
[398584779,1765857060442,-500.0,0.00011506,2]
[398584780,1765857060451,-1196.22,0.00011506,2]
[398584781,1765857060461,-500.0,0.00011506,2]
[398584782,1765857060471,-764.95,0.00011506,2]
[398584783,1765857060480,-564.38545547,0.00011506,2]
[398584784,1765857060490,-500.0,0.00011506,2]
[398584785,1765857060501,-1723.48,0.00011506,2]
[398584786,1765857060510,-500.0,0.00011506,2]
[398584787,1765857060520,-795.49,0.00011506,2]
[398584788,1765857060530,-500.0,0.00011506,2]
[398584789,1765857060540,-500.0,0.00011506,2]
[398584790,1765857060549,-579.03,0.00011506,2]
[398584791,1765857060559,-527.94,0.00011506,2]
[398584792,1765857060569,-852.9,0.00011506,2]
[398584793,1765857060578,-500.0,0.00011506,2]
[398584794,1765857060587,-613.42,0.00011506,2]
[398584795,1765857060596,-1741.83,0.00011506,2]
[398584796,1765857060605,-500.0,0.00011506,2]
[398584797,1765857060615,-500.0,0.00011506,2]
[398584798,1765857060624,-579.96,0.00011506,2]
[398584799,1765857060633,-500.0,0.00011506,2]
[398584800,1765857060643,-500.0,0.00011506,2]
[398584801,1765857060651,-500.0,0.00011506,2]
[398584802,1765857060660,-500.0,0.00011506,2]
[398584803,1765857060670,-882.7,0.00011506,2]
[398584804,1765857060679,-500.0,0.00011506,2]
[398584805,1765857060689,-909.29,0.00011506,2]
[398584806,1765857060698,-500.0,0.00011506,2]
[398584807,1765857060707,-500.0,0.00011506,2]
[398584808,1765857060717,-500.0,0.00011506,2]
[398584809,1765857060726,-500.0,0.00011506,2]
[398584810,1765857060735,-500.0,0.00011506,2]
[398584811,1765857060745,-500.0,0.00011506,2]
[398584812,1765857060756,-565.46120073,0.00011506,2]
[398584813,1765857060765,-500.0,0.00011506,2]
[398584814,1765857060774,-500.0,0.00011506,2]
[398584815,1765857060783,-1389.03,0.00011506,2]
[398584816,1765857060793,-652.64,0.00011506,2]
[398584817,1765857060802,-500.0,0.00011506,2]
[398584818,1765857060811,-502.01728225,0.00011506,2]
[398584819,1765857060820,-500.0,0.00011506,2]
[398584820,1765857060829,-500.0,0.00011506,2]
[398584821,1765857060839,-500.0,0.00011506,2]
[398584822,1765857060848,-863.06,0.00011506,2]
[398584823,1765857060857,-946.95,0.00011506,2]
[398584824,1765857060867,-500.0,0.00011506,2]
[398584825,1765857060877,-752.63,0.00011506,2]
[398584826,1765857060886,-500.0,0.00011506,2]
[398584827,1765857060895,-500.0,0.00011506,2]
[398584828,1765857060904,-500.0,0.00011506,2]
[398584829,1765857060913,-1824.47,0.00011506,2]
[398584830,1765857060922,-631.43,0.00011506,2]
[398584831,1765857060931,-548.39,0.00011506,2]
[398584832,1765857060940,-500.0,0.00011506,2]
[398584833,1765857060950,-5069.0,0.00011506,2]
[398584834,1765857060959,-502.5080359,0.00011506,2]
[398584835,1765857060968,-869.38,0.00011506,2]
[398584836,1765857060978,-500.0,0.00011506,2]
[398584837,1765857060987,-1418.86,0.00011506,2]
[398584838,1765857060997,-500.0,0.00011506,2]
[398584839,1765857061012,-500.0,0.00011506,2]
[398584840,1765857061022,-500.0,0.00011506,2]
[398584841,1765857061031,-387.42205834,0.00011506,2]
[398584842,1765857061041,-1398.62,0.00011506,2]
[398584843,1765857061050,-2490.08,0.00011506,2]
[398584844,1765857061059,-500.0,0.00011506,2]
[398584845,1765857061068,-500.0,0.00011506,2]
[398584846,1765857061078,-500.0,0.00011506,2]
[398584847,1765857061087,-886.06,0.00011506,2]
[398584848,1765857061097,-500.0,0.00011506,2]
[398584849,1765857061106,-555.44,0.00011506,2]
[398584850,1765857061115,-500.0,0.00011506,2]
[398584851,1765857061127,-500.0,0.00011506,2]
[398584852,1765857061136,-886.48,0.00011506,2]
[398584853,1765857061146,-528.18,0.00011506,2]
[398584854,1765857061156,-1144.03,0.00011506,2]
[398584855,1765857061167,-1839.21,0.00011506,2]
[398584856,1765857061176,-500.0,0.00011506,2]
[398584857,1765857061185,-500.0,0.00011506,2]
[398584858,1765857061195,-760.81,0.00011506,2]
[398584859,1765857061205,-500.0,0.00011506,2]
[398584860,1765857061215,-500.0,0.00011506,2]
[398584861,1765857061224,-500.0,0.00011506,2]
[398584862,1765857061233,-578.54,0.00011506,2]
[398584863,1765857061243,-500.0,0.00011506,2]
[398584864,1765857061253,-525.22,0.00011506,2]
[398584865,1765857061263,-1799.91,0.00011506,2]
[398584866,1765857061272,-500.0,0.00011506,2]
[398584867,1765857061282,-1395.69,0.00011506,2]
[398584868,1765857061291,-500.0,0.00011506,2]
[398584869,1765857061301,-500.0,0.00011506,2]
[398584870,1765857061310,-500.0,0.00011506,2]
[398584871,1765857061319,-500.0,0.00011506,2]
[398584872,1765857061330,-2489.6,0.00011506,2]
[398584873,1765857061341,-500.0,0.00011506,2]
[398584874,1765857061350,-500.0,0.00011506,2]
[398584875,1765857061359,-500.0,0.00011506,2]
[398584876,1765857061368,-500.0,0.00011506,2]
[398584877,1765857061378,-500.0,0.00011506,2]
[398584878,1765857061387,-500.0,0.00011506,2]
[398584879,1765857061396,-3564.58,0.00011506,2]
[398584880,1765857061406,-1851.38,0.00011506,2]
[398584881,1765857061416,-1892.77,0.00011506,2]
[398584882,1765857061430,-500.0,0.00011506,2]
[398584883,1765857061439,-500.0,0.00011506,2]
[398584884,1765857061449,-625.7,0.00011506,2]
[398584885,1765857061462,-554.05,0.00011506,2]
[398584886,1765857061471,-614.05,0.00011506,2]
[398584887,1765857061480,-500.0,0.00011506,2]
[398584888,1765857061490,-1268.17,0.00011506,2]
[398584889,1765857061500,-500.0,0.00011506,2]
[398584890,1765857061509,-500.0,0.00011506,2]
[398584891,1765857061518,-477.700705,0.00011506,2]
[398584892,1765857061528,-500.0,0.00011506,2]
[398584893,1765857061537,-2548.3,0.00011506,2]
[398584894,1765857061546,-964.39,0.00011506,2]
[398584895,1765857061555,-500.0,0.00011506,2]
[398584896,1765857061565,-500.0,0.00011506,2]
[398584897,1765857061574,-500.0,0.00011506,2]
[398584898,1765857061584,-2757.29,0.00011506,2]
[398584899,1765857061593,-921.12,0.00011506,2]
[398584900,1765857061602,-1379.13,0.00011506,2]
[398584901,1765857061612,-500.0,0.00011506,2]
[398584902,1765857061622,-1281.57,0.00011506,2]
[398584903,1765857061631,-500.0,0.00011506,2]
[398584904,1765857061641,-500.0,0.00011506,2]
[398584905,1765857061652,-500.0,0.00011506,2]
[398584906,1765857061661,-500.0,0.00011506,2]
[398584907,1765857061670,-591.0,0.00011506,2]
[398584908,1765857061680,-500.0,0.00011506,2]
[398584909,1765857061691,-500.0,0.00011506,2]
[398584910,1765857061701,-500.0,0.00011506,2]
[398584911,1765857061710,-621.24,0.00011506,2]
[398584912,1765857061719,-500.0,0.00011506,2]
[398584913,1765857061729,-500.0,0.00011506,2]
[398584914,1765857061740,-858.92,0.00011506,2]
[398584915,1765857061751,-604.25,0.00011506,2]
[398584916,1765857061761,-601.93,0.00011506,2]
[398584917,1765857061770,-1724.77,0.00011506,2]
[398584918,1765857061779,-500.0,0.00011506,2]
[398584919,1765857061788,-1883.58,0.00011506,2]
[398584920,1765857061798,-500.0,0.00011506,2]
[398584921,1765857061807,-500.0,0.00011506,2]
[398584922,1765857061817,-897.25,0.00011506,2]
[398584923,1765857061826,-1210.79,0.00011506,2]
[398584924,1765857061835,-1351.77,0.00011506,2]
[398584925,1765857061846,-500.0,0.00011506,2]
[398584926,1765857061855,-773.94,0.00011506,2]
[398584927,1765857061864,-500.0,0.00011506,2]
[398584928,1765857061873,-724.47,0.00011506,2]
[398584929,1765857061882,-500.0,0.00011506,2]
[398584930,1765857061892,-1559.66,0.00011506,2]
[398584931,1765857061901,-500.0,0.00011506,2]
[398584932,1765857061911,-500.0,0.00011506,2]
[398584933,1765857061920,-658.19,0.00011506,2]
[398584934,1765857061929,-901.9,0.00011506,2]
[398584935,1765857061939,-500.0,0.00011506,2]
[398584936,1765857061948,-535.8864569,0.00011506,2]
[398584937,1765857061957,-1664.36,0.00011506,2]
[398584938,1765857061967,-500.0,0.00011506,2]
[398584939,1765857061976,-500.0,0.00011506,2]
[398584940,1765857061986,-540.02,0.00011506,2]
[398584941,1765857061996,-1404.56,0.00011506,2]
[398584942,1765857062005,-1280.6,0.00011506,2]
[398584943,1765857062015,-500.0,0.00011506,2]
[398584944,1765857062024,-500.0,0.00011506,2]
[398584945,1765857062033,-577.11,0.00011506,2]
[398584946,1765857062042,-517.8,0.00011506,2]
[398584947,1765857062052,-500.0,0.00011506,2]
[398584948,1765857062061,-851.34,0.00011506,2]
[398584949,1765857062070,-500.0,0.00011506,2]
[398584950,1765857062080,-500.0,0.00011506,2]
[398584951,1765857062088,-1225.41,0.00011506,2]
[398584952,1765857062098,-500.0,0.00011506,2]
[398584953,1765857062108,-500.0,0.00011506,2]
[398584954,1765857062116,-500.0,0.00011506,2]
[398584955,1765857062129,-500.0,0.00011506,2]
[398584956,1765857062139,-6779.98,0.00011506,2]
[398584957,1765857062148,-500.0,0.00011506,2]
[398584958,1765857062157,-500.0,0.00011506,2]
[398584959,1765857062166,-500.0,0.00011506,2]
[398584960,1765857062176,-500.0,0.00011506,2]
[398584961,1765857062185,-645.31686971,0.00011506,2]
[398584962,1765857062194,-500.0,0.00011506,2]
[398584963,1765857062207,-500.0,0.00011506,2]
[398584964,1765857062216,-879.62,0.00011506,2]
[398584965,1765857062226,-500.0,0.00011506,2]
[398584966,1765857062236,-849.34,0.00011506,2]
[398584967,1765857062246,-500.0,0.00011506,2]
[398584968,1765857062256,-4220.16,0.00011506,2]
[398584969,1765857062266,-500.0,0.00011506,2]
[398584970,1765857062282,-500.0,0.00011506,2]
[398584971,1765857062300,-500.0,0.00011506,2]
[398584972,1765857062316,-500.0,0.00011506,2]
[398584973,1765857062326,-500.0,0.00011506,2]
[398584974,1765857062337,-2541.48,0.00011506,2]
[398584975,1765857062346,-500.0,0.00011506,2]
[398584976,1765857062356,-618.0,0.00011506,2]
[398584977,1765857062366,-1330.94,0.00011506,2]
[398584978,1765857062376,-502.75,0.00011506,2]
[398584979,1765857062385,-500.0,0.00011506,2]
[398584980,1765857062394,-500.0,0.00011506,2]
[398584981,1765857062403,-1721.89,0.00011506,2]
[398584982,1765857062412,-500.0,0.00011506,2]
[398584983,1765857062421,-1471.73,0.00011506,2]
[398584984,1765857062430,-1794.66,0.00011506,2]
[398584985,1765857062440,-500.0,0.00011506,2]
[398584986,1765857062450,-500.0,0.00011506,2]
[398584987,1765857062463,-1436.2,0.00011506,2]
[398584988,1765857062473,-919.0,0.00011506,2]
[398584989,1765857062483,-1483.78,0.00011506,2]
[398584990,1765857062493,-500.0,0.00011506,2]
[398584991,1765857062503,-9283.55,0.00011506,2]
[398584992,1765857062517,-1109.0,0.00011506,2]
[398584993,1765857062535,-638.98,0.00011506,2]
[398584994,1765857062553,-930.78,0.00011506,2]
[398584995,1765857062564,-700.85,0.00011506,2]
[398584996,1765857062573,-500.0,0.00011506,2]
[398584997,1765857062582,-500.0,0.00011506,2]
[398584998,1765857062591,-2453.55,0.00011506,2]
[398584999,1765857062599,-707.6,0.00011506,2]
[398585000,1765857062608,-536.25,0.00011506,2]
[398585001,1765857062617,-500.0,0.00011506,2]
[398585002,1765857062626,-500.0,0.00011506,2]
[398585003,1765857062634,-990.55,0.00011506,2]
[398585004,1765857062643,-500.0,0.00011506,2]
[398585005,1765857062652,-2349.49,0.00011506,2]
[398585006,1765857062661,-2196.03,0.00011506,2]
[398585007,1765857062670,-500.0,0.00011506,2]
[398585008,1765857062678,-1420.86,0.00011506,2]
[398585009,1765857062687,-1354.29,0.00011506,2]
[398585010,1765857062696,-500.0,0.00011506,2]
[398585011,1765857062705,-1566.76,0.00011506,2]
[398585012,1765857062714,-500.0,0.00011506,2]
[398585013,1765857062723,-1789.22,0.00011506,2]
[398585014,1765857062732,-500.0,0.00011506,2]
[398585015,1765857062740,-975.67,0.00011506,2]
[398585016,1765857062749,-997.09,0.00011506,2]
[398585017,1765857062759,-1344.17,0.00011506,2]
[398585018,1765857062768,-600.75,0.00011506,2]
[398585019,1765857062777,-500.0,0.00011506,2]
[398585020,1765857062785,-500.0,0.00011506,2]
[398585021,1765857062794,-500.0,0.00011506,2]
[398585022,1765857062803,-4842.15,0.00011506,2]
[398585023,1765857062812,-500.0,0.00011506,2]
[398585024,1765857062821,-938.39,0.00011506,2]
[398585025,1765857062830,-513.63,0.00011506,2]
[398585026,1765857062839,-1372.69,0.00011506,2]
[398585027,1765857062848,-500.0,0.00011506,2]
[398585028,1765857062857,-500.0,0.00011506,2]
[398585029,1765857062867,-500.0,0.00011506,2]
[398585030,1765857062877,-1192.19,0.00011506,2]
[398585031,1765857062887,-500.0,0.00011506,2]
[398585032,1765857062898,-2748.55,0.00011506,2]
[398585033,1765857062907,-825.5,0.00011506,2]
[398585034,1765857062916,-708.11,0.00011506,2]
[398585035,1765857062925,-2322.09,0.00011506,2]
[398585036,1765857062934,-2125.4,0.00011506,2]
[398585037,1765857062943,-500.0,0.00011506,2]
[398585038,1765857062952,-500.0,0.00011506,2]
[398585039,1765857062962,-500.0,0.00011506,2]
[398585040,1765857062971,-6830.61,0.00011506,2]
[398585041,1765857062980,-8377.94,0.00011506,2]
[398585042,1765857062990,-500.0,0.00011506,2]
[398585043,1765857062999,-2121.87,0.00011506,2]
[398585044,1765857063008,-513.5824019,0.00011506,2]
[398585045,1765857063017,-500.0,0.00011506,2]
[398585046,1765857063027,-858.84,0.00011506,2]
[398585047,1765857063037,-945.29,0.00011506,2]
[398585048,1765857063046,-1092.05,0.00011506,2]
[398585049,1765857063055,-580.26,0.00011506,2]
[398585050,1765857063065,-500.0,0.00011506,2]
[398585051,1765857063085,-500.0,0.00011506,2]
[398585052,1765857063096,-500.0,0.00011506,2]
[398585053,1765857063107,-500.0,0.00011506,2]
[398585054,1765857063117,-2445.72,0.00011506,2]
[398585055,1765857063132,-500.0,0.00011506,2]
[398585056,1765857063142,-3903.36,0.00011506,2]
[398585057,1765857063152,-537.08,0.00011506,2]
[398585058,1765857063162,-618.36,0.00011506,2]
[398585059,1765857063173,-500.0,0.00011506,2]
[398585060,1765857063184,-4243.55,0.00011506,2]
[398585061,1765857063194,-500.0,0.00011506,2]
[398585062,1765857063205,-500.0,0.00011506,2]
[398585063,1765857063214,-1422.62,0.00011506,2]
[398585064,1765857063224,-800.38,0.00011506,2]
[398585065,1765857063233,-1202.09,0.00011506,2]
[398585066,1765857063242,-799.6,0.00011506,2]
[398585067,1765857063251,-520.25,0.00011506,2]
[398585068,1765857063263,-341.70206782,0.00011506,2]
[398585069,1765857063273,-14584.18,0.00011506,2]
[398585070,1765857063283,-610.10419525,0.00011506,2]
[398585071,1765857063292,-500.0,0.00011506,2]
[398585072,1765857063302,-2341.35,0.00011506,2]
[398585073,1765857063311,-500.0,0.00011506,2]
[398585074,1765857063321,-614.63,0.00011506,2]
[398585075,1765857063330,-500.0,0.00011506,2]
[398585076,1765857063339,-2042.99,0.00011506,2]
[398585077,1765857063349,-3921.7,0.00011506,2]
[398585078,1765857063359,-2154.94,0.00011506,2]
[398585079,1765857063368,-500.0,0.00011506,2]
[398585080,1765857063377,-1164.37,0.00011506,2]
[398585081,1765857063387,-1452.17,0.00011506,2]
[398585082,1765857063397,-500.0,0.00011506,2]
[398585083,1765857063406,-940.07,0.00011506,2]
[398585084,1765857063415,-885.63,0.00011506,2]
[398585085,1765857063425,-3354.89,0.00011506,2]
[398585086,1765857063434,-500.0,0.00011506,2]
[398585087,1765857063444,-500.0,0.00011506,2]
[398585088,1765857063453,-583.17,0.00011506,2]
[398585089,1765857063462,-934.17,0.00011506,2]
[398585090,1765857063471,-500.0,0.00011506,2]
[398585091,1765857063700,-500.0,0.00011506,2]
[398585092,1765857063709,-2662.12,0.00011506,2]
[398585093,1765857063718,-1389.33,0.00011506,2]
[398585094,1765857063727,-2691.53,0.00011506,2]
[398585095,1765857063735,-500.0,0.00011506,2]
[398585096,1765857063744,-500.0,0.00011506,2]
[398585097,1765857063753,-500.0,0.00011506,2]
[398585098,1765857063762,-500.0,0.00011506,2]
[398585099,1765857063771,-947.29,0.00011506,2]
[398585100,1765857063779,-500.0,0.00011506,2]
[398585101,1765857063788,-500.0,0.00011506,2]
[398585102,1765857063797,-1434.18,0.00011506,2]
[398585103,1765857063806,-1332.18,0.00011506,2]
[398585104,1765857063814,-319.18601548,0.00011506,2]
[398585105,1765857063822,-607.29,0.00011506,2]
[398585106,1765857063831,-500.0,0.00011506,2]
[398585107,1765857063840,-500.0,0.00011506,2]
[398585108,1765857063848,-500.0,0.00011506,2]
[398585109,1765857063857,-500.0,0.00011506,2]
[398585110,1765857063866,-500.0,0.00011506,2]
[398585111,1765857063875,-3493.92,0.00011506,2]
[398585112,1765857063883,-454.93252946,0.00011506,2]
[398585113,1765857063892,-500.0,0.00011506,2]
[398585114,1765857063901,-500.0,0.00011506,2]
[398585115,1765857063910,-1734.78,0.00011506,2]
[398585116,1765857063918,-529.53,0.00011506,2]
[398585117,1765857063927,-500.0,0.00011506,2]
[398585118,1765857063936,-1497.62,0.00011506,2]
[398585119,1765857063945,-1890.34,0.00011506,2]
[398585120,1765857063954,-1724.14,0.00011506,2]
[398585121,1765857063963,-1321.15,0.00011506,2]
[398585122,1765857063972,-500.0,0.00011506,2]
[398585123,1765857063981,-500.0,0.00011506,2]
[398585124,1765857063990,-500.0,0.00011506,2]
[398585125,1765857064000,-627.84,0.00011506,2]
[398585126,1765857064011,-1136.33,0.00011506,2]
[398585127,1765857064020,-500.0,0.00011506,2]
[398585128,1765857064030,-500.0,0.00011506,2]
[398585129,1765857064040,-2584.7,0.00011506,2]
[398585130,1765857064049,-478.93811843,0.00011506,2]
[398585131,1765857064058,-500.0,0.00011506,2]
[398585132,1765857064067,-906.3,0.00011506,2]
[398585133,1765857064076,-523.47,0.00011506,2]
[398585134,1765857064086,-500.0,0.00011506,2]
[398585135,1765857064095,-860.33,0.00011506,2]
[398585136,1765857064105,-500.0,0.00011506,2]
[398585137,1765857064115,-1103.9,0.00011506,2]
[398585138,1765857064124,-526.2,0.00011506,2]
[398585139,1765857064136,-500.0,0.00011506,2]
[398585140,1765857064145,-625.36,0.00011506,2]
[398585141,1765857064154,-500.0,0.00011506,2]
[398585142,1765857064164,-500.0,0.00011506,2]
[398585143,1765857064174,-500.0,0.00011506,2]
[398585144,1765857064183,-500.0,0.00011506,2]
[398585145,1765857064192,-500.0,0.00011506,2]
[398585146,1765857064201,-3387.17,0.00011506,2]
[398585147,1765857064210,-838.05,0.00011506,2]
[398585148,1765857064219,-500.0,0.00011506,2]
[398585149,1765857064229,-500.0,0.00011506,2]
[398585150,1765857064238,-717.42,0.00011506,2]
[398585151,1765857064247,-500.0,0.00011506,2]
[398585152,1765857064257,-11122.08,0.00011506,2]
[398585153,1765857064266,-1435.24,0.00011506,2]
[398585154,1765857064275,-500.0,0.00011506,2]
[398585155,1765857064284,-500.0,0.00011506,2]
[398585156,1765857064293,-645.68,0.00011506,2]
[398585157,1765857064302,-22080.53,0.00011506,2]
[398585158,1765857064312,-3719.53,0.00011506,2]
[398585159,1765857064321,-500.0,0.00011506,2]
[398585160,1765857064331,-835.99,0.00011506,2]
[398585161,1765857064340,-1808.12,0.00011506,2]
[398585162,1765857064349,-500.0,0.00011506,2]
[398585163,1765857064358,-500.0,0.00011506,2]
[398585164,1765857064367,-500.0,0.00011506,2]
[398585165,1765857064375,-8246.11,0.00011506,2]
[398585166,1765857064384,-1665.52,0.00011506,2]
[398585167,1765857064393,-500.0,0.00011506,2]
[398585168,1765857064402,-500.0,0.00011506,2]
[398585169,1765857064410,-500.0,0.00011506,2]
[398585170,1765857064419,-505.05,0.00011506,2]
[398585171,1765857064428,-616.25123435,0.00011506,2]
[398585172,1765857064437,-500.0,0.00011506,2]
[398585173,1765857064446,-5019.38,0.00011506,2]
[398585174,1765857064455,-688.63,0.00011506,2]
[398585175,1765857064464,-980.38,0.00011506,2]
[398585176,1765857064473,-2863.98,0.00011506,2]
[398585177,1765857064482,-2333.27,0.00011506,2]
[398585178,1765857064492,-500.0,0.00011506,2]
[398585179,1765857064501,-500.0,0.00011506,2]
[398585180,1765857064510,-500.0,0.00011506,2]
[398585181,1765857064520,-884.98,0.00011506,2]
[398585182,1765857064529,-2011.13,0.00011506,2]
[398585183,1765857064538,-500.0,0.00011506,2]
[398585184,1765857064547,-561.14,0.00011506,2]
[398585185,1765857064556,-1161.7,0.00011506,2]
[398585186,1765857064565,-5555.9,0.00011506,2]
[398585187,1765857064574,-500.0,0.00011506,2]
[398585188,1765857064583,-1243.71,0.00011506,2]
[398585189,1765857064592,-35354.14,0.00011506,2]
[398585190,1765857064601,-536.3901663,0.00011506,2]
[398585191,1765857064612,-3963.15,0.00011506,2]
[398585192,1765857064621,-9588.87,0.00011506,2]
[398585193,1765857064630,-500.0,0.00011506,2]
[398585194,1765857064640,-1419.14,0.00011506,2]
[398585195,1765857064649,-500.0,0.00011506,2]
[398585196,1765857064658,-1172.55,0.00011506,2]
[398585197,1765857064668,-500.0,0.00011506,2]
[398585198,1765857064678,-500.0,0.00011506,2]
[398585199,1765857064687,-2089.03,0.00011506,2]
[398585200,1765857064697,-500.0,0.00011506,2]
[398585201,1765857064707,-2257.39,0.00011506,2]
[398585202,1765857064717,-1097.79,0.00011506,2]
[398585203,1765857064726,-1991.38,0.00011506,2]
[398585204,1765857064736,-841.22,0.00011506,2]
[398585205,1765857064745,-500.0,0.00011506,2]
[398585206,1765857064755,-500.0,0.00011506,2]
[398585207,1765857064764,-500.0,0.00011506,2]
[398585208,1765857064774,-208.85840374,0.00011506,2]
[398585209,1765857064783,-800.38,0.00011506,2]
[398585210,1765857064793,-500.0,0.00011506,2]
[398585211,1765857064803,-1431.03,0.00011506,2]
[398585212,1765857064812,-500.0,0.00011506,2]
[398585213,1765857064821,-8351.41,0.00011506,2]
[398585214,1765857064830,-500.0,0.00011506,2]
[398585215,1765857064840,-1423.76,0.00011506,2]
[398585216,1765857064849,-896.79,0.00011506,2]
[398585217,1765857064859,-500.0,0.00011506,2]
[398585218,1765857064868,-1140.27,0.00011506,2]
[398585219,1765857064877,-4075.24,0.00011506,2]
[398585220,1765857064887,-500.0,0.00011506,2]
[398585221,1765857064897,-914.19,0.00011506,2]
[398585222,1765857064907,-500.0,0.00011506,2]
[398585223,1765857064916,-500.0,0.00011506,2]
[398585224,1765857064926,-3247.84,0.00011506,2]
[398585225,1765857064935,-1445.43,0.00011506,2]
[398585226,1765857064946,-500.0,0.00011506,2]
[398585227,1765857064955,-500.0,0.00011506,2]
[398585228,1765857064965,-940.6,0.00011506,2]
[398585229,1765857064974,-500.0,0.00011506,2]
[398585230,1765857064983,-500.0,0.00011506,2]
[398585231,1765857064993,-1956.75,0.00011506,2]
[398585232,1765857065003,-500.0,0.00011506,2]
[398585233,1765857065012,-500.0,0.00011506,2]
[398585234,1765857065022,-1069.42,0.00011506,2]
[398585235,1765857065031,-2026.56,0.00011506,2]
[398585237,1765857065041,-1628.96,0.00011506,2]
[398585238,1765857065050,-1842.29,0.00011506,2]
[398585239,1765857065060,-1954.46,0.00011506,2]
[398585240,1765857065070,-500.0,0.00011506,2]
[398585241,1765857065079,-500.0,0.00011506,2]
[398585242,1765857065088,-500.0,0.00011506,2]
[398585243,1765857065097,-1249.58,0.00011506,2]
[398585244,1765857065107,-305.82422674,0.00011506,2]
[398585245,1765857065116,-5203.28,0.00011506,2]
[398585246,1765857065129,-2367.41,0.00011506,2]
[398585247,1765857065138,-3863.02,0.00011506,2]
[398585248,1765857065148,-500.0,0.00011506,2]
[398585249,1765857065157,-2306.5,0.00011506,2]
[398585250,1765857065167,-5137.41,0.00011506,2]
[398585251,1765857065176,-500.0,0.00011506,2]
[398585252,1765857065186,-500.0,0.00011506,2]
[398585253,1765857065195,-674.15,0.00011506,2]
[398585254,1765857065207,-500.0,0.00011506,2]
[398585255,1765857065217,-560.29,0.00011506,2]
[398585256,1765857065226,-500.0,0.00011506,2]
[398585257,1765857065236,-2457.45,0.00011506,2]
[398585258,1765857065247,-1620.3,0.00011506,2]
[398585259,1765857065255,-935.88,0.00011506,2]
[398585260,1765857065266,-2175.69,0.00011506,2]
[398585261,1765857065274,-500.0,0.00011506,2]
[398585262,1765857065284,-500.0,0.00011506,2]
[398585263,1765857065294,-831.4,0.00011506,2]
[398585264,1765857065303,-500.0,0.00011506,2]
[398585265,1765857065313,-537.44,0.00011506,2]
[398585266,1765857065322,-500.0,0.00011506,2]
[398585267,1765857065331,-561.27484385,0.00011506,2]
[398585268,1765857065341,-500.0,0.00011506,2]
[398585269,1765857065350,-500.0,0.00011506,2]
[398585270,1765857065359,-500.0,0.00011506,2]
[398585271,1765857065369,-500.0,0.00011506,2]
[398585272,1765857065378,-1150.49,0.00011506,2]
[398585273,1765857065387,-1109.49,0.00011506,2]
[398585274,1765857065397,-643.61,0.00011506,2]
[398585275,1765857065406,-1846.1,0.00011506,2]
[398585276,1765857065415,-500.0,0.00011506,2]
[398585277,1765857065424,-500.0,0.00011506,2]
[398585278,1765857065433,-2982.60894464,0.00011541,2]